fUST/lending_fUST_20241106
["ID","MTS","AMOUNT","RATE_DAILY","PERIOD"]
[341371266,1730848240939,-500.8260841,0.00038356,14]
[341371268,1730848240948,-500.0,0.00038356,14]
[341371270,1730848240957,-500.0,0.00038356,14]
[341371272,1730848240967,-500.0,0.00038356,14]
[341371274,1730848240977,-500.0,0.00038356,14]
[341371276,1730848240986,-255.99943752,0.00038356,14]
[341371278,1730848240995,-500.0,0.00038356,14]
[341371280,1730848241004,-500.0,0.00038356,14]
[341371282,1730848241014,-510.81291086,0.00038356,14]
[341371284,1730848241023,-500.0,0.00038356,14]
[341371286,1730848241033,-500.0,0.00038356,14]
[341371288,1730848241043,-500.0,0.00038356,14]
[341371290,1730848241052,-500.0,0.00038356,14]
[341371292,1730848241061,-500.0,0.00038356,14]
[341371294,1730848241073,-426.57,0.00038356,14]
[341371296,1730848241083,-500.0,0.00038356,14]
[341371298,1730848241092,-500.0,0.00038356,14]
[341371300,1730848241101,-500.0,0.00038356,14]
[341371302,1730848241110,-500.0,0.00038356,14]
[341371304,1730848241119,-500.0,0.00038356,14]
[341371306,1730848241128,-500.0,0.00038356,14]
[341371308,1730848241138,-533.2225039,0.00038356,14]
[341371310,1730848241148,-500.0,0.00038356,14]
[341371312,1730848241157,-501.91972121,0.00038356,14]
[341371314,1730848241167,-500.0,0.00038356,14]
[341371317,1730848241177,-500.0,0.00038356,14]
[341371319,1730848241186,-500.0,0.00038356,14]
[341371321,1730848241195,-500.0,0.00038356,14]
[341371323,1730848241205,-500.0,0.00038356,14]
[341371324,1730848241214,-500.0,0.00038356,14]
[341371326,1730848241224,-500.0,0.00038356,14]
[341371328,1730848241233,-500.0,0.00038356,14]
[341371330,1730848241243,-500.0,0.00038356,14]
[341371333,1730848241252,-500.0,0.00038356,14]
[341371335,1730848241261,-500.0,0.00038356,14]
[341371337,1730848241270,-500.0,0.00038356,14]
[341371339,1730848241279,-500.0,0.00038356,14]
[341371341,1730848241289,-500.0,0.00038356,14]
[341371343,1730848241298,-500.0,0.00038356,14]
[341371345,1730848241307,-500.0,0.00038356,14]
[341371347,1730848241316,-500.0,0.00038356,14]
[341371349,1730848241325,-1000.0,0.00038356,116]
[341371351,1730848241335,-500.0,0.00038356,14]
[341371353,1730848241344,-500.0,0.00038356,14]
[341371355,1730848241353,-1526.06,0.00038356,14]
[341371357,1730848241362,-500.0,0.00038356,14]
[341371358,1730848241372,-500.0,0.00038356,14]
[341371359,1730848241381,-500.0,0.00038356,14]
[341371360,1730848241390,-500.0,0.00038356,10]
[341371361,1730848241399,-500.0,0.00038356,14]
[341371362,1730848241409,-500.0,0.00038356,14]
[341371363,1730848241417,-500.0,0.00038356,14]
[341371364,1730848241426,-507.61999038,0.00038356,14]
[341371365,1730848241435,-500.0,0.00038356,14]
[341371366,1730848241445,-243.9397185,0.00038356,14]
[341371367,1730848241454,-517.99046643,0.00038356,14]
[341371368,1730848241463,-500.0,0.00038356,14]
[341371369,1730848241479,-500.0,0.00038356,14]
[341371370,1730848241490,-500.0,0.00038356,14]
[341371371,1730848241499,-500.0,0.00038356,14]
[341371372,1730848241508,-500.0,0.00038356,14]
[341371373,1730848241517,-500.0,0.00038356,14]
[341371374,1730848241526,-500.0,0.00038356,14]
[341371375,1730848241535,-500.0,0.00038356,14]
[341371376,1730848241546,-1244.28121877,0.00038356,14]
[341371377,1730848241558,-500.0,0.00038356,14]
[341371378,1730848241567,-500.0,0.00038356,14]
[341371379,1730848241576,-690.76,0.00038356,14]
[341371380,1730848241585,-500.0,0.00038356,14]
[341371381,1730848241595,-515.4668376,0.00038356,14]
[341371382,1730848241604,-569.44010916,0.00038356,14]
[341371383,1730848241613,-200.0,0.00038356,7]
[341371384,1730848241622,-500.0,0.00038356,14]
[341371385,1730848241633,-503.41998529,0.00038356,14]
[341371386,1730848241642,-500.0,0.00038356,14]
[341371387,1730848241652,-500.0,0.00038356,14]
[341371388,1730848241661,-500.0,0.00038356,14]
[341371389,1730848241670,-1399.78,0.00038356,14]
[341371390,1730848241679,-516.65337224,0.00038356,14]
[341371391,1730848241689,-187.57020073,0.00038356,14]
[341371397,1730848243252,-2419.11445702,0.00038356,14]
[341371398,1730848243820,-18.53534225,0.00038356,14]
[341371399,1730848243830,-447.55732012,0.00038356,14]
[341371497,1730848332902,150.0,0.00024658,2]
[341371498,1730848606898,164.970223,0.00013973,2]
[341371501,1730848785641,520.83333333,0.00020816,2]
[341371535,1730849144126,-156.18489857,0.00024558,2]
[341371536,1730849144153,-170.0,0.00024658,2]
[341371537,1730849144177,-151.0,0.0003,120]
[341371538,1730849144201,-151.0,0.0003,120]
[341371539,1730849144223,-161.72838122,0.0003,2]
[341371540,1730849144251,-1083.39898835,0.000301,2]
[341371543,1730849226094,-520.83333333,0.00026386,2]
[341371544,1730849226118,-1707.11909022,0.000301,2]
[341371545,1730849228124,-1214.60721443,0.000301,2]
[341371546,1730849228159,-191.793989,0.00031882,2]
[341371547,1730849228188,-53.9876995,0.00032441,2]
[341371548,1730849236136,-181.7288755,0.00032441,2]
[341371549,1730849236163,-448.00218589,0.00032564,2]
[341371550,1730849240084,-475.29015883,0.00032564,2]
[341371551,1730849246110,-212.92457428,0.00032564,2]
[341371552,1730849246132,-274.0,0.00033,2]
[341371553,1730849246154,-165.0,0.00033,2]
[341371554,1730849246177,-274.0,0.00033151,2]
[341371555,1730849246199,-179.216865,0.0003329,120]
[341371556,1730849246222,-164.0771091,0.00033327,2]
[341371557,1730849246244,-151.0,0.00033342,120]
[341371558,1730849246271,-152.37,0.000335,31]
[341371559,1730849246297,-152.37,0.000335,31]
[341371560,1730849246320,-232.5006831,0.0003366,2]
[341371561,1730849246345,-151.0,0.00034274,120]
[341371562,1730849246370,-274.0,0.00034521,2]
[341371563,1730849246395,-165.0,0.00034521,2]
[341371564,1730849246418,-269.19,0.00035,2]
[341371565,1730849246440,-326.10271963,0.00035253,7]
[341371566,1730849253089,-165.0,0.00033,2]
[341371567,1730849253112,-129.39418509,0.00035253,7]
[341371568,1730849253136,-500.0,0.00035253,7]
[341371569,1730849253160,-166.57976215,0.00035253,7]
[341371570,1730849274132,43491.8735212,0.0003443,30]
[341371577,1730849314187,14673.59125443,0.000134,2]
[341371579,1730849351138,-520.83333333,0.00022673,2]
[341371582,1730849362085,-2471.67043285,0.00032,5]
[341371584,1730849362107,-1968.25381685,0.00033,2]
[341371589,1730849399072,520.83333333,0.00020816,2]
[341371606,1730849432350,-17057.33114774,0.00033,2]
[341371609,1730849432363,-152.37,0.000335,31]
[341371611,1730849432373,-152.37,0.000335,31]
[341371613,1730849432382,-7849.90344152,0.0003398,4]
[341371617,1730849432423,-1558.42092661,0.0003398,4]
[341371618,1730849432432,-917.43,0.00034419,10]
[341371619,1730849432442,-528.32478858,0.00034419,10]
[341371643,1730849439181,-500.0,0.00032999,7]
[341371644,1730849439191,-315.24651447,0.00032999,7]
[341371645,1730849439202,-500.0,0.00032999,7]
[341371646,1730849439213,-500.0,0.00032999,7]
[341371647,1730849439222,-500.0,0.00032999,7]
[341371648,1730849439232,-500.0,0.00032999,7]
[341371649,1730849439241,-500.0,0.00032999,7]
[341371650,1730849439250,-500.0,0.00032999,7]
[341371651,1730849439259,-500.0,0.00032999,7]
[341371652,1730849439269,-500.0,0.00032999,7]
[341371653,1730849439280,-500.0,0.00032999,7]
[341371654,1730849439290,-236.19521142,0.00034419,10]
[341371655,1730849439302,-39.05804476,0.00034419,10]
[341371730,1730849443375,-598.04195524,0.00034419,10]
[341371731,1730849443385,-577.88,0.00034419,3]
[341371732,1730849443395,-270.99689964,0.00034428,7]
[341371733,1730849443405,-161.43957928,0.00034429,7]
[341371734,1730849443416,-16847.91325686,0.00034429,2]
[341371735,1730849443431,-611.94791378,0.00034429,2]
[341371746,1730849742330,252.1157313,0.00013973,2]
[341371748,1730849912621,1093.49344924,0.00020816,2]
[341371749,1730849920823,774.56459412,0.00020816,2]
[341371750,1730850011404,520.83333333,0.00020816,2]
[341371761,1730850243582,186.551828,0.00013973,2]
[341371762,1730850357118,-150.11620761,0.0003,5]
[341371763,1730850357140,-114.11016044,0.0003,2]
[341371764,1730850426091,-158.55833956,0.0003,2]
[341371765,1730850426114,-150.0,0.000301,2]
[341371766,1730850426137,-509.9145252,0.0003098,2]
[341371767,1730850426161,-199.668476,0.00031199,2]
[341371768,1730850426182,-520.83333333,0.00031704,2]
[341371769,1730850426203,-179.216865,0.00032877,120]
[341371770,1730850426229,-152.39,0.000335,31]
[341371771,1730850426252,-1751.09106663,0.00034325,2]
[341371772,1730850426273,-340.0,0.00034423,2]
[341371773,1730850426296,-378.0,0.00034423,2]
[341371774,1730850426317,-189.69782975,0.00034424,7]
[341371775,1730850426338,-214.78960225,0.00034424,7]
[341371776,1730850426361,-590.58294605,0.00034424,7]
[341371777,1730850426384,-500.0,0.00034424,7]
[341371778,1730850426411,-500.0,0.00034424,7]
[341371779,1730850426432,-500.0,0.00034424,7]
[341371780,1730850426455,-500.0,0.00034424,7]
[341371781,1730850426476,-500.0,0.00034424,7]
[341371782,1730850426499,-300.0,0.00034424,7]
[341371783,1730850426522,-343.34241742,0.00034424,7]
[341371784,1730850426545,-500.0,0.00034424,7]
[341371785,1730850426567,-500.0,0.00034424,7]
[341371786,1730850426590,-207.22269134,0.00034424,7]
[341371787,1730850426613,-520.32657763,0.00034424,7]
[341371788,1730850426636,-500.0,0.00034424,7]
[341371789,1730850426665,-500.0,0.00034424,7]
[341371790,1730850426689,-500.0,0.00034424,7]
[341371791,1730850426712,-500.0,0.00034424,7]
[341371792,1730850426734,-405.2983751,0.00034424,7]
[341371793,1730850433093,-94.7016249,0.00034424,7]
[341371794,1730850433115,-95.14335143,0.00034424,7]
[341371795,1730850443100,-520.83333333,0.00028982,2]
[341371796,1730850443127,-328.81478455,0.00034424,7]
[341371797,1730850447086,-76.04186402,0.00034424,7]
[341371798,1730850447108,-300.0,0.00034424,7]
[341371799,1730850447129,-161.43957928,0.00034425,7]
[341371800,1730850447151,-168.52903609,0.00034426,38]
[341371801,1730850447175,-317.75998801,0.00034426,120]
[341371802,1730850451111,-4682.24001199,0.00034426,120]
[341371803,1730850451144,-1323.64565834,0.00034426,120]
[341371804,1730850545131,-520.83333333,0.0002626,2]
[341371805,1730850561118,520.83333333,0.00023538,2]
[341371806,1730850569114,-152.4,0.000335,31]
[341371807,1730850569141,-161.72838124,0.00034325,2]
[341371808,1730850569166,-685.18,0.000344,30]
[341371809,1730850569192,-3124.80043088,0.00034425,120]
[341371810,1730850587572,239.172447,0.00031083,2]
[341371811,1730850589459,2599.98860983,0.00030993,2]
[341371812,1730850611633,195.658217,0.00030793,2]
[341371813,1730850623296,520.83333333,0.00020816,2]
[341371844,1730850632591,-1.42514687,0.00030993,2]
[341371845,1730850632601,-1875.19956912,0.00034425,120]
[341371846,1730850632610,-734.23353053,0.00034425,120]
[341371847,1730850632619,-64915.31839829,0.00034425,2]
[341371848,1730850632629,-845.32449601,0.00034425,7]
[341371900,1730850638792,-2102.76981289,0.00034425,7]
[341371977,1730850643693,-563.50920738,0.00034425,7]
[341371978,1730850643702,-500.0,0.00034429,7]
[341371979,1730850643712,-500.0,0.000345,5]
[341371980,1730850643721,-414.17435704,0.000345,5]
[341371985,1730850646770,-85.82564296,0.000345,5]
[341371986,1730850646779,-595.08708656,0.000345,5]
[341371987,1730850646789,-3101.03857379,0.00034568,2]
[341371988,1730850646798,-1309.62978914,0.00034728,12]
[341371989,1730850646807,-900.42222066,0.00034999,120]
[341371990,1730850853208,177.389869,0.00013973,2]
[341371993,1730851234707,520.83333333,0.00020816,2]
[341371994,1730851485577,175.993294,0.00013973,2]
[341371996,1730851534176,-150.0,0.000287,2]
[341371997,1730851534199,-154.26023396,0.00032211,2]
[341371998,1730851534224,-1840.07006696,0.00032265,2]
[341371999,1730851629080,-520.83333333,0.00029975,2]
[341372000,1730851629101,-268.69853,0.0003134,2]
[341372001,1730851629121,-1567.48948427,0.00032265,2]
[341372002,1730851633079,-643.37371347,0.00032265,2]
[341372003,1730851633101,-184.467812,0.00032311,2]
[341372004,1730851633121,-176.35380711,0.00032438,2]
[341372005,1730851637173,-223.40749679,0.00032438,2]
[341372006,1730851637195,-400.0,0.0003254,2]
[341372007,1730851637216,-300.0,0.0003254,2]
[341372008,1730851637236,-5917.77679767,0.00032541,61]
[341372009,1730851642088,-129.90749693,0.00032541,61]
[341372010,1730851642110,-179.216865,0.00032877,120]
[341372011,1730851642131,-192.0,0.00033,2]
[341372012,1730851642153,-192.0,0.00033151,2]
[341372013,1730851642176,-95.20077673,0.000335,31]
[341372014,1730851654274,-57.19922327,0.000335,31]
[341372015,1730851654296,-250.0,0.00034423,7]
[341372016,1730851654317,-96.21056674,0.00034423,7]
[341372017,1730851749104,-520.83333333,0.00025395,2]
[341372018,1730851750579,160.0,0.00031408,5]
[341372019,1730851750872,160.0,0.00030308,4]
[341372020,1730851751170,160.0,0.00029208,3]
[341372021,1730851752004,240.17878616,0.00031408,5]
[341372022,1730851761948,352.0,0.0003,3]
[341372023,1730851784407,520.83333333,0.00023106,2]
[341372024,1730851800327,334.43,0.00020816,2]
[341372033,1730851832700,-212.4884571,0.00031733,2]
[341372034,1730851832711,-152.4,0.000335,31]
[341372035,1730851832722,-533.91170629,0.00034423,7]
[341372037,1730851832732,-500.0,0.00034423,7]
[341372039,1730851832742,-225.31156478,0.00034423,7]
[341372040,1730851832752,-156.65758258,0.00034423,7]
[341372041,1730851832761,-500.0,0.00034423,7]
[341372042,1730851832773,-500.0,0.00034423,7]
[341372043,1730851832783,-500.0,0.00034423,7]
[341372044,1730851832792,-500.0,0.00034423,7]
[341372045,1730851832803,-620.54556718,0.00034423,7]
[341372046,1730851832813,-9796.95012137,0.00034424,2]
[341372064,1730851838916,-6933.7,0.00034424,2]
[341372065,1730851838929,-3268.34987863,0.00034424,2]
[341372066,1730851838944,-500.0,0.00034425,7]
[341372067,1730851838955,-192.0,0.00034521,2]
[341372068,1730851838965,-1777.55497617,0.000349,2]
[341372069,1730851838975,-1502.81459949,0.00034999,2]
[341372070,1730851838984,-2138.34257111,0.00035,2]
[341372071,1730851838993,-10484.43410752,0.00035,2]
[341372072,1730851839003,-168.79379705,0.00035,120]
[341372073,1730851839014,-1004.34641589,0.00035,5]
[341372074,1730851839025,-398.63,0.00035,2]
[341372075,1730851839034,-644.75000635,0.0003503,2]
[341372076,1730851839050,-4737.60395673,0.0003503,2]
[341372077,1730851839059,-408.27901053,0.00035247,10]
[341372078,1730851839068,-152.4,0.000356,31]
[341372079,1730851839081,-152.4,0.000356,31]
[341372080,1730851839091,-293.278663,0.00035736,2]
[341372081,1730851839103,-158.722236,0.00035736,2]
[341372082,1730851839114,-1777.55497614,0.000359,2]
[341372083,1730851839125,-197.0,0.00036247,2]
[341372084,1730851839135,-306.0,0.00036499,30]
[341372085,1730851839145,-153.0,0.00036499,30]
[341372086,1730851839154,-153.0,0.00036499,30]
[341372087,1730851839163,-153.0,0.00036499,30]
[341372088,1730851839172,-158.722236,0.00036629,2]
[341372089,1730851839182,-151.0,0.00036685,120]
[341372090,1730851839191,-166.277,0.0003678,12]
[341372091,1730851839200,-272.6685,0.00036838,2]
[341372092,1730851839210,-1777.55497614,0.000369,2]
[341372093,1730851839218,-345.9284483,0.00037184,30]
[341372094,1730851839228,-18186.43002878,0.00037373,3]
[341372095,1730851839237,-153.0,0.00037458,30]
[341372096,1730851839246,-153.0,0.00037458,30]
[341372097,1730851839255,-158.722236,0.00037522,2]
[341372098,1730851839265,-152.4,0.000377,31]
[341372099,1730851839275,-152.4,0.000377,31]
[341372100,1730851839284,-1777.55497614,0.000379,2]
[341372101,1730851839293,-2187.05826631,0.00038,20]
[341372102,1730851839302,-398.63,0.00038,2]
[341372103,1730851839311,-166.231,0.00038007,120]
[341372104,1730851839321,-704.45304128,0.000382,109]
[341372105,1730851839330,-704.45304124,0.000382,109]
[341372106,1730851839339,-704.45304124,0.000382,109]
[341372107,1730851839348,-1000.0,0.00038256,2]
[341372108,1730851839358,-529.0,0.00038325,2]
[341372109,1730851839367,-1249.879,0.00038325,2]
[341372110,1730851839376,-2393.0,0.00038325,2]
[341372111,1730851839385,-151.84,0.00038346,3]
[341372112,1730851839395,-381.28,0.00038346,10]
[341372113,1730851839404,-150.01,0.00038355,2]
[341372114,1730851839414,-2428.08988379,0.00038355,2]
[341372115,1730851839423,-1100.76,0.00038355,120]
[341372116,1730851839432,-151.0,0.00038355,14]
[341372117,1730851839442,-151.0,0.00038355,14]
[341372118,1730851839452,-151.0,0.00038355,14]
[341372119,1730851839462,-600.0,0.00038355,2]
[341372120,1730851839474,-151.0,0.00038355,14]
[341372121,1730851839489,-500.0,0.00038356,14]
[341372122,1730851839499,-529.43280128,0.00038356,14]
[341372123,1730851839509,-510.42187137,0.00038356,14]
[341372124,1730851839520,-610.29728907,0.00038356,14]
[341372125,1730851839530,-500.0,0.00038356,14]
[341372126,1730851839540,-500.0,0.00038356,14]
[341372127,1730851839554,-502.02890014,0.00038356,14]
[341372128,1730851839565,-500.0,0.00038356,14]
[341372129,1730851839575,-509.54634652,0.00038356,14]
[341372130,1730851839586,-500.0,0.00038356,14]
[341372131,1730851839596,-500.0,0.00038356,14]
[341372132,1730851839607,-500.0,0.00038356,14]
[341372133,1730851839617,-500.0,0.00038356,14]
[341372134,1730851839626,-517.93899879,0.00038356,14]
[341372135,1730851839635,-500.0,0.00038356,14]
[341372136,1730851839645,-500.0,0.00038356,14]
[341372137,1730851839654,-500.0,0.00038356,14]
[341372138,1730851839663,-500.0,0.00038356,14]
[341372139,1730851839673,-500.0,0.00038356,14]
[341372140,1730851839682,-500.0,0.00038356,14]
[341372141,1730851839691,-316.57178388,0.00038356,14]
[341372142,1730851839700,-500.0,0.00038356,14]
[341372143,1730851839710,-505.16890856,0.00038356,14]
[341372144,1730851839720,-500.0,0.00038356,14]
[341372145,1730851839729,-1000.0,0.00038356,30]
[341372146,1730851839739,-524.89959751,0.00038356,14]
[341372147,1730851839748,-572.44739528,0.00038356,14]
[341372148,1730851839759,-500.0,0.00038356,14]
[341372149,1730851839768,-506.29613886,0.00038356,14]
[341372150,1730851839778,-500.0,0.00038356,14]
[341372151,1730851839787,-511.86101274,0.00038356,14]
[341372152,1730851839797,-500.0,0.00038356,14]
[341372153,1730851839806,-500.0,0.00038356,14]
[341372154,1730851839816,-502.54979823,0.00038356,14]
[341372155,1730851839826,-508.84263092,0.00038356,14]
[341372156,1730851839835,-525.27903601,0.00038356,14]
[341372157,1730851839854,-500.0,0.00038356,14]
[341372158,1730851839865,-500.0,0.00038356,14]
[341372159,1730851839875,-500.0,0.00038356,14]
[341372160,1730851839884,-500.0,0.00038356,14]
[341372161,1730851839894,-500.0,0.00038356,14]
[341372162,1730851839904,-506.30487625,0.00038356,14]
[341372163,1730851839914,-500.0,0.00038356,14]
[341372164,1730851839923,-503.79365094,0.00038356,14]
[341372165,1730851839933,-500.0,0.00038356,14]
[341372166,1730851839943,-500.0,0.00038356,14]
[341372167,1730851839953,-1000.0,0.00038356,30]
[341372168,1730851839963,-500.0,0.00038356,14]
[341372169,1730851839973,-500.0,0.00038356,14]
[341372170,1730851839983,-500.0,0.00038356,10]
[341372171,1730851839993,-500.0,0.00038356,14]
[341372172,1730851840003,-504.5760185,0.00038356,14]
[341372173,1730851840012,-500.0,0.00038356,14]
[341372174,1730851840022,-500.0,0.00038356,14]
[341372175,1730851840032,-508.79772968,0.00038356,14]
[341372176,1730851840041,-500.0,0.00038356,14]
[341372177,1730851840050,-500.0,0.00038356,14]
[341372178,1730851840060,-604.34761335,0.00038356,14]
[341372179,1730851840069,-500.0,0.00038356,14]
[341372180,1730851840078,-501.07237061,0.00038356,14]
[341372181,1730851840088,-500.0,0.00038356,14]
[341372182,1730851840097,-500.0,0.00038356,14]
[341372183,1730851840107,-500.0,0.00038356,14]
[341372184,1730851840116,-503.53941776,0.00038356,14]
[341372185,1730851840126,-505.10826291,0.00038356,14]
[341372186,1730851840135,-505.62260539,0.00038356,14]
[341372187,1730851840145,-500.0,0.00038356,14]
[341372188,1730851840155,-500.0,0.00038356,14]
[341372189,1730851840165,-872.9,0.00038356,14]
[341372191,1730851840175,-500.0,0.00038356,120]
[341372192,1730851840184,-504.76226541,0.00038356,14]
[341372193,1730851840194,-500.0,0.00038356,7]
[341372194,1730851840203,-500.0,0.00038356,14]
[341372195,1730851840212,-502.9004759,0.00038356,14]
[341372197,1730851840222,-500.0,0.00038356,14]
[341372198,1730851840231,-512.66384961,0.00038356,14]
[341372199,1730851840241,-500.0,0.00038356,14]
[341372200,1730851840250,-500.0,0.00038356,14]
[341372201,1730851840260,-151.0,0.00038356,14]
[341372202,1730851840270,-151.0,0.00038356,14]
[341372203,1730851840280,-158.610618,0.00038356,14]
[341372204,1730851840289,-500.0,0.00038356,14]
[341372205,1730851840300,-507.78633003,0.00038356,14]
[341372207,1730851840399,-500.0,0.00038356,14]
[341372208,1730851840410,-519.28178784,0.00038356,14]
[341372209,1730851840419,-500.0,0.00038356,14]
[341372210,1730851840429,-532.64207331,0.00038356,14]
[341372211,1730851840439,-500.0,0.00038356,14]
[341372212,1730851840449,-518.45391823,0.00038356,14]
[341372213,1730851840459,-500.0,0.00038356,14]
[341372214,1730851840468,-530.13362974,0.00038356,14]
[341372215,1730851840478,-503.52573992,0.00038356,14]
[341372216,1730851840490,-500.0,0.00038356,14]
[341372217,1730851840501,-500.0,0.00038356,14]
[341372218,1730851840512,-500.0,0.00038356,14]
[341372219,1730851840525,-500.0,0.00038356,14]
[341372220,1730851840534,-500.0,0.00038356,14]
[341372221,1730851840544,-500.0,0.00038356,14]
[341372222,1730851840553,-500.0,0.00038356,14]
[341372223,1730851840562,-500.0,0.00038356,14]
[341372224,1730851840572,-500.0,0.00038356,14]
[341372225,1730851840588,-500.0,0.00038356,2]
[341372226,1730851840597,-500.0,0.00038356,14]
[341372227,1730851840606,-507.06429306,0.00038356,14]
[341372228,1730851840616,-502.65966867,0.00038356,14]
[341372229,1730851840625,-560.50390433,0.00038356,14]
[341372230,1730851840634,-500.0,0.00038356,14]
[341372231,1730851840644,-500.0,0.00038356,14]
[341372233,1730851840653,-325.65663081,0.00038356,14]
[341372235,1730851840662,-502.70236609,0.00038356,14]
[341372237,1730851840671,-151.0,0.00038356,14]
[341372239,1730851840681,-500.0,0.00038356,14]
[341372241,1730851840690,-264.08718346,0.00038356,120]
[341372243,1730851840700,-504.45056544,0.00038356,14]
[341372245,1730851840710,-500.0,0.00038356,14]
[341372247,1730851840720,-500.0,0.00038356,14]
[341372249,1730851840730,-500.0,0.00038356,14]
[341372250,1730851840739,-500.0,0.00038356,14]
[341372251,1730851840750,-500.0,0.00038356,14]
[341372252,1730851840760,-500.86741141,0.00038356,14]
[341372253,1730851840772,-508.1639528,0.00038356,14]
[341372254,1730851840782,-503.8883564,0.00038356,14]
[341372255,1730851840791,-547.81563708,0.00038356,14]
[341372256,1730851840800,-500.0,0.00038356,14]
[341372257,1730851840810,-585.40191811,0.00038356,14]
[341372258,1730851840820,-500.0,0.00038356,14]
[341372259,1730851840830,-527.22196352,0.00038356,14]
[341372260,1730851840839,-500.0,0.00038356,14]
[341372261,1730851840848,-500.0,0.00038356,14]
[341372262,1730851840857,-500.0,0.00038356,14]
[341372263,1730851840866,-188.0,0.00038356,14]
[341372264,1730851840875,-500.0,0.00038356,14]
[341372265,1730851840885,-500.0,0.00038356,14]
[341372266,1730851840894,-500.0,0.00038356,14]
[341372267,1730851840903,-501.51169872,0.00038356,14]
[341372268,1730851840913,-500.0,0.00038356,14]
[341372269,1730851840922,-500.0,0.00038356,14]
[341372270,1730851840931,-500.0,0.00038356,14]
[341372271,1730851840941,-500.0,0.00038356,14]
[341372272,1730851840951,-568.32150609,0.00038356,14]
[341372273,1730851840960,-500.0,0.00038356,14]
[341372274,1730851840969,-500.0,0.00038356,14]
[341372275,1730851840979,-500.0,0.00038356,14]
[341372276,1730851840989,-393.82578214,0.00038356,14]
[341372277,1730851840999,-405.46832262,0.00038356,14]
[341372278,1730851841008,-510.12057443,0.00038356,14]
[341372279,1730851841019,-500.77028733,0.00038356,14]
[341372280,1730851841035,-500.0,0.00038356,14]
[341372281,1730851841044,-500.0,0.00038356,14]
[341372282,1730851841053,-500.0,0.00038356,14]
[341372283,1730851841063,-503.08659347,0.00038356,14]
[341372284,1730851841072,-514.6971034,0.00038356,14]
[341372285,1730851841081,-506.6102976,0.00038356,14]
[341372286,1730851841091,-500.0,0.00038356,14]
[341372287,1730851841100,-325.06180817,0.00038356,14]
[341372288,1730851841109,-500.0,0.00038356,14]
[341372289,1730851841118,-584.77050323,0.00038356,14]
[341372290,1730851841128,-151.0,0.00038356,14]
[341372291,1730851841138,-506.43597864,0.00038356,14]
[341372292,1730851841147,-504.43108934,0.00038356,14]
[341372293,1730851841157,-500.0,0.00038356,14]
[341372294,1730851841166,-500.0,0.00038356,14]
[341372295,1730851841176,-504.59469775,0.00038356,14]
[341372296,1730851841185,-502.26869928,0.00038356,14]
[341372297,1730851841195,-511.31861856,0.00038356,14]
[341372298,1730851841205,-500.0,0.00038356,14]
[341372299,1730851841215,-500.0,0.00038356,14]
[341372300,1730851841225,-156.73025,0.00038356,14]
[341372301,1730851841235,-500.0,0.00038356,14]
[341372302,1730851841244,-500.0,0.00038356,14]
[341372303,1730851841253,-500.0,0.00038356,14]
[341372304,1730851841263,-500.0,0.00038356,14]
[341372305,1730851841276,-500.0,0.00038356,14]
[341372306,1730851841287,-500.0,0.00038356,14]
[341372307,1730851841297,-500.0,0.00038356,14]
[341372308,1730851841308,-500.0,0.00038356,14]